[Event "FIDE World Rapid-ch Open 2018"]
[White "Zubritskiy, Artyom"]
[Black "Kryakvin, Dmitry"]
[Site "St. Petersburg"]
[Round "10.73"]
[Annotator "ChessBase"]
[Result "1/2-1/2"]
[Date "2018.12.27"]
[WhiteElo "2442"]
[BlackElo "2588"]
[PlyCount "93"]
[TimeControl "900+10"]

1. d4 {[%emt 0:0:6]} d5 {[%emt 0:0:0]} 2. c4 {[%emt 0:0:1]} c6 {[%emt 0:0:0]} 3. Nf3 {[%emt 0:0:2]} Nf6 {[%emt 0:0:0]} 4. e3 {[%emt 0:0:2]} Bf5 {[%emt 0:0:0]} 5. Nc3 {[%emt 0:0:1]} e6 {[%emt 0:0:0]} 6. Nh4 {[%emt 0:0:0]} Be4 {[%emt 0:0:1]} 7. f3 {[%emt 0:0:2]} Bg6 {[%emt 0:0:2]} 8. g3 {[%emt 0:1:19]} Be7 {[%emt 0:0:11]} 9. Be2 {[%emt 0:0:14]} a6 {[%emt 0:0:0]} 10. Nxg6 {[%emt 0:0:54]} hxg6 {[%emt 0:0:2]} 11. 0-0 {[%emt 0:0:2]} Nbd7 {[%emt 0:0:41]} 12. cxd5 {[%emt 0:1:8]} cxd5 {[%emt 0:0:34]} 13. a4 {[%emt 0:0:21]
} 0-0 {[%emt 0:0:12]} 14. Qb3 {[%emt 0:1:2]} Qb6 {[%emt 0:0:0]} 15. Qxb6 {[%emt 0:0:2]} Nxb6 {[%emt 0:0:2]} 16. a5 {[%emt 0:2:8]} Nbd7 {[%emt 0:0:37]} 17. Bd2 {[%emt 0:0:6]} Rfc8 {[%emt 0:0:15]} 18. Na4 {[%emt 0:6:40]
} Rc2 {[%emt 0:5:16]} 19. Rfd1 {[%emt 0:0:9]} e5 {[%emt 0:0:0]} 20. Bd3 {[%emt 0:2:12]} Rc6 {[%emt 0:1:18]} 21. b4 {[%emt 0:0:40]} e4 {[%emt 0:0:37]
} 22. fxe4 {[%emt 0:0:49]} dxe4 {[%emt 0:0:31]} 23. b5 {[%emt 0:0:17]
} Rc7 {[%emt 0:0:49]} 24. Nb6 {[%emt 0:0:28]} Rd8 {[%emt 0:0:0]} 25. Be2 {[%emt 0:0:1]} axb5 {[%emt 0:0:19]} 26. Nxd7 {[%emt 0:0:4]} Rdxd7 {[%emt 0:1:53]} 27. Bxb5 Rd8 28. a6 {[%emt 0:0:8]} bxa6 {[%emt 0:0:0]} 29. Ba5 {[%emt 0:0:4]} axb5 {[%emt 0:0:34]} 30. Bxc7 {[%emt 0:0:0]} Rd7 {[%emt 0:0:2]} 31. Bf4 {[%emt 0:0:38]} Nd5 {[%emt 0:0:15]} 32. h4 {[%emt 0:0:1]
} b4 {[%emt 0:0:28]} 33. Rdb1 {[%emt 0:0:23]} Kh7 {[%emt 0:0:0]} 34. Ra5 {[%emt 0:0:12]} Bd8 {[%emt 0:0:57]} 35. Rc5 {[%emt 0:0:15]} Be7 {[%emt 0:0:33]} 36. Ra5 {[%emt 0:0:1]} Bd8 {[%emt 0:0:5]} 37. Rxd5 {[%emt 0:0:21]
} Rxd5 38. Rxb4 g5 {[%emt 0:0:16]} 39. hxg5 {[%emt 0:0:3]} Bxg5 {[%emt 0:0:1]} 40. Bxg5 {[%emt 0:0:24]} Rxg5 {[%emt 0:0:19]} 41. Kf2 {[%emt 0:0:1]
} Rf5+ {[%emt 0:0:5]} 42. Ke2 {[%emt 0:0:1]} Kg6 {[%emt 0:0:0]} 43. d5 {[%emt 0:0:11]} Rxd5 {[%emt 0:0:42]} 44. Rxe4 {[%emt 0:0:2]} Rf5 {[%emt 0:0:1]} 45. Ra4 {[%emt 0:0:12]} Kg5 {[%emt 0:0:6]} 46. Rb4 {[%emt 0:0:7]
} g6 {[%emt 0:0:17]} 47. Rc4 {[%emt 0:0:1]} 1/2-1/2

[Event "FIDE World Rapid-ch Open 2018"]
[White "Borisenko, Viacheslav"]
[Black "Baron, Tal"]
[Site "St. Petersburg"]
[Round "10.74"]
[Annotator "ChessBase"]
[Result "0-1"]
[Date "2018.12.27"]
[WhiteElo "2289"]
[BlackElo "2532"]
[PlyCount "42"]
[TimeControl "900+10"]

1. e4 e5 2. f4 exf4 3. Nf3 Ne7 4. d4 d5 5. e5 Ng6 6. Bd3 c5 7. c3 Nc6 8. Bxg6 hxg6 9. Bxf4 Bg4 10. Be3 Qb6 11. Qd2 0-0-0 12. 0-0 f6 13. exf6 gxf6 14. h3 Bf5 15. dxc5 Bxc5 16. Nd4 Bxh3 17. Rxf6 Bf5 18. Na3 Rh4 19. Nxf5 gxf5 20. Bxc5 Qxc5+ 21. Qf2 Rh1+ 0-1

[Event "FIDE World Rapid-ch Open 2018"]
[White "Anisimov, Pavel"]
[Black "Nihal Sarin"]
[Site "St. Petersburg"]
[Round "10.75"]
[Annotator "ChessBase"]
[Result "0-1"]
[Date "2018.12.27"]
[WhiteElo "2533"]
[BlackElo "2576"]
[PlyCount "130"]
[TimeControl "900+10"]

1. d4 {[%emt 0:0:0]} Nf6 {[%emt 0:0:0]} 2. Bf4 {[%emt 0:0:0]} e6 {[%emt 0:0:9]
} 3. e3 {[%emt 0:0:0]} b6 {[%emt 0:0:5]} 4. Nf3 {[%emt 0:0:0]} Bb7 {[%emt 0:0:6]} 5. Bd3 {[%emt 0:0:20]} Be7 {[%emt 0:0:13]} 6. Nbd2 {[%emt 0:0:9]} Nh5 {[%emt 0:0:6]} 7. Bg3 {[%emt 0:0:8]} 0-0 {[%emt 0:0:0]} 8. Ng5 {[%emt 0:3:0]} Nf6 {[%emt 0:0:44]} 9. e4 {[%emt 0:0:35]} h6 {[%emt 0:0:14]
} 10. h4 {[%emt 0:0:21]} d6 {[%emt 0:1:54]} 11. Qe2 {[%emt 0:0:0]} Nc6 {[%emt 0:3:57]} 12. c3 {[%emt 0:1:31]} e5 {[%emt 0:0:2]} 13. dxe5 {[%emt 0:1:15]} Nxe5 {[%emt 0:0:33]} 14. Bc2 {[%emt 0:0:57]} Nfd7 {[%emt 0:1:43]
} 15. f4 {[%emt 0:0:44]} hxg5 {[%emt 0:1:37]} 16. fxe5 {[%emt 0:1:12]
} gxh4 {[%emt 0:0:45]} 17. exd6 {[%emt 0:0:18]} cxd6 {[%emt 0:0:0]} 18. e5 {[%emt 0:1:16]} Nxe5 {[%emt 0:1:20]} 19. 0-0-0 {[%emt 0:0:46]
} Bg5 {[%emt 0:0:36]} 20. Bxh4 Bxh4 {[%emt 0:0:4]} 21. Bh7+ {[%emt 0:2:52]} Kh8 {[%emt 0:0:42]} 22. Qh5 {[%emt 0:0:40]} Bg5 {[%emt 0:1:59]} 23. Be4+ {[%emt 0:0:16]
} Bh6 {[%emt 0:0:1]} 24. Bxb7 {[%emt 0:0:6]} Nd3+ {[%emt 0:0:0]} 25. Kc2 {[%emt 0:0:5]} Nf2 {[%emt 0:0:4]} 26. Bxa8 {[%emt 0:0:20]} Qxa8 {[%emt 0:0:21]} 27. g4 {[%emt 0:0:10]} f6 {[%emt 0:0:25]} 28. Rdf1 {[%emt 0:0:15]
} Nxh1 {[%emt 0:0:3]} 29. Rxh1 {[%emt 0:0:1]} Qe8 {[%emt 0:0:0]} 30. Qf5 {[%emt 0:0:8]} Qe5 {[%emt 0:0:12]} 31. Qd3 {[%emt 0:0:13]} d5 {[%emt 0:0:11]} 32. Nf3 {[%emt 0:0:3]} Qe4 {[%emt 0:0:4]} 33. Re1 {[%emt 0:0:16]
} Qxg4 {[%emt 0:0:14]} 34. Qxd5 {[%emt 0:0:1]} Qg6+ {[%emt 0:0:0]} 35. Kb3 {[%emt 0:0:19]} Qf7 {[%emt 0:0:1]} 36. Re6 {[%emt 0:0:16]} Re8 {[%emt 0:0:21]} 37. Nd4 {[%emt 0:0:5]} Rxe6 {[%emt 0:0:6]} 38. Nxe6 {[%emt 0:0:1]
} f5 {[%emt 0:0:6]} 39. c4 {[%emt 0:0:3]} f4 {[%emt 0:0:18]} 40. Qd8+ {[%emt 0:0:13]} Qg8 {[%emt 0:0:9]} 41. Nf8 {[%emt 0:0:33]} g5 {[%emt 0:0:16]
} 42. Qd4+ {[%emt 0:0:8]} Qg7 43. Ng6+ Kh7 44. Ne5 Qf6 {[%emt 0:0:20]
} 45. Qe4+ {[%emt 0:0:4]} Kg7 {[%emt 0:0:5]} 46. Qb7+ {[%emt 0:0:1]
} Kg8 {[%emt 0:0:4]} 47. Qd5+ {[%emt 0:0:4]} Kh8 {[%emt 0:0:0]} 48. Ng4 {[%emt 0:0:13]} Qg6 {[%emt 0:0:7]} 49. Qa8+ {[%emt 0:0:3]} Kh7 {[%emt 0:0:3]} 50. Qxa7+ {[%emt 0:0:14]} Bg7 {[%emt 0:0:2]} 51. Qd7 {[%emt 0:0:6]
} Qb1 {[%emt 0:0:24]} 52. Qd2 {[%emt 0:0:18]} Qe4 {[%emt 0:0:0]} 53. Qd7 {[%emt 0:0:31]} Kg6 {[%emt 0:0:15]} 54. Kb4 {[%emt 0:0:27]} f3 {[%emt 0:0:25]} 55. Nf2 {[%emt 0:0:8]} Qe1+ {[%emt 0:0:15]} 56. Kb5 {[%emt 0:0:3]
} Qa5+ {[%emt 0:0:9]} 57. Kc6 {[%emt 0:0:2]} Qa4+ {[%emt 0:0:0]} 58. Kc7 {[%emt 0:0:1]} Be5+ {[%emt 0:0:4]} 59. Kd8 {[%emt 0:0:5]} Qxd7+ 60. Kxd7 Kf5 {[%emt 0:0:7]} 61. b4 {[%emt 0:0:21]} Bd4 {[%emt 0:0:6]
} 62. Nh1 {[%emt 0:0:13]} Kf4 {[%emt 0:0:6]} 63. Kc6 {[%emt 0:0:7]} g4 {[%emt 0:0:5]
} 64. Kd5 {[%emt 0:0:8]} g3 {[%emt 0:0:6]} 65. Kxd4 {[%emt 0:0:0]} g2 {[%emt 0:0:2]} 0-1

[Event "FIDE World Rapid-ch Open 2018"]
[White "Makoveev, Ilya"]
[Black "Salgado Lopez, Ivan"]
[Site "St. Petersburg"]
[Round "10.76"]
[Annotator "ChessBase"]
[Result "0-1"]
[Date "2018.12.27"]
[WhiteElo "2257"]
[BlackElo "2629"]
[PlyCount "64"]
[TimeControl "900+10"]

1. e4 {[%emt 0:0:0]} e5 {[%emt 0:0:0]} 2. Nf3 {[%emt 0:0:0]} Nc6 {[%emt 0:0:0]
} 3. Bc4 {[%emt 0:0:0]} Bc5 {[%emt 0:0:0]} 4. 0-0 {[%emt 0:0:0]} d6 {[%emt 0:0:1]} 5. c3 {[%emt 0:5:45]} Bb6 {[%emt 0:0:4]} 6. h3 {[%emt 0:1:4]
} Qf6 {[%emt 0:0:38]} 7. d3 {[%emt 0:0:36]} h6 {[%emt 0:0:6]} 8. Be3 {[%emt 0:0:13]} Nge7 {[%emt 0:0:3]} 9. Nbd2 {[%emt 0:0:37]} g5 {[%emt 0:0:16]
} 10. Nh2 {[%emt 0:0:32]} Ng6 {[%emt 0:0:2]} 11. Qf3 {[%emt 0:0:0]} Qg7 {[%emt 0:0:29]} 12. Kh1 {[%emt 0:3:8]} Nf4 {[%emt 0:0:31]} 13. g3 {[%emt 0:1:24]} Nxh3 {[%emt 0:0:25]} 14. Ng4 {[%emt 0:0:1]} f5 {[%emt 0:0:0]} 15. exf5 {[%emt 0:0:12]} h5 {[%emt 0:0:38]} 16. f6 {[%emt 0:0:43]} Qg6 {[%emt 0:0:3]} 17. Nh2 {[%emt 0:0:22]} g4 {[%emt 0:0:36]} 18. f7+ {[%emt 0:0:3]
} Ke7 {[%emt 0:0:51]} 19. Qg2 {[%emt 0:0:26]} Be6 {[%emt 0:0:0]} 20. Bxb6 {[%emt 0:0:17]} axb6 {[%emt 0:0:5]} 21. f4 {[%emt 0:0:6]} Bxc4 {[%emt 0:0:35]} 22. dxc4 {[%emt 0:0:29]} exf4 {[%emt 0:0:33]} 23. gxf4 {[%emt 0:0:15]} Qxf7 {[%emt 0:0:43]} 24. Qd5 {[%emt 0:0:59]} Raf8 {[%emt 0:0:0]} 25. Ne4 {[%emt 0:0:21]} Kd7 {[%emt 0:0:36]} 26. f5 {[%emt 0:0:30]} Qxd5 {[%emt 0:0:26]} 27. cxd5 {[%emt 0:0:2]} Ne7 {[%emt 0:0:21]} 28. f6 {[%emt 0:0:14]
} Nxd5 {[%emt 0:0:2]} 29. Rae1 {[%emt 0:0:3]} Rh6 {[%emt 0:0:0]} 30. f7 {[%emt 0:0:21]} Ndf4 {[%emt 0:0:16]} 31. Re3 {[%emt 0:0:10]} Rxf7 {[%emt 0:0:20]} 32. c4 {[%emt 0:0:10]} Re6 {[%emt 0:0:33]} 0-1

[Event "FIDE World Rapid-ch Open 2018"]
[White "Smirin, Ilia"]
[Black "Dzhumagaliev, Yan"]
[Site "St. Petersburg"]
[Round "10.77"]
[Annotator "ChessBase"]
[Result "1-0"]
[Date "2018.12.27"]
[WhiteElo "2609"]
[BlackElo "2410"]
[PlyCount "59"]
[TimeControl "900+10"]

1. e4 {[%emt 0:0:0]} c5 {[%emt 0:0:0]} 2. Nf3 {[%emt 0:0:0]} e6 {[%emt 0:0:0]} 3. d4 {[%emt 0:0:0]} cxd4 {[%emt 0:0:0]} 4. Nxd4 {[%emt 0:0:0]} Nc6 {[%emt 0:0:1]} 5. Nc3 {[%emt 0:0:0]} Qc7 {[%emt 0:0:2]} 6. f4 {[%emt 0:0:9]
} a6 {[%emt 0:0:14]} 7. Be3 {[%emt 0:0:17]} b5 {[%emt 0:0:30]} 8. Bd3 {[%emt 0:0:8]} Nxd4 {[%emt 0:0:34]} 9. Bxd4 {[%emt 0:0:3]} Qxf4 {[%emt 0:0:7]
} 10. Rf1 {[%emt 0:0:13]} Qh4+ {[%emt 0:2:6]} 11. g3 {[%emt 0:0:0]} Qe7 {[%emt 0:0:4]} 12. e5 {[%emt 0:0:26]} Bb7 {[%emt 0:2:24]} 13. Be4 {[%emt 0:0:38]} Bxe4 {[%emt 0:0:48]} 14. Nxe4 {[%emt 0:0:3]} Qb4+ {[%emt 0:0:12]
} 15. c3 {[%emt 0:0:34]} Qxb2 {[%emt 0:0:2]} 16. Rf2 {[%emt 0:0:0]} Qa3 {[%emt 0:0:3]} 17. Qf3 {[%emt 0:0:2]} 0-0-0 {[%emt 0:0:2]} 18. Nd6+ {[%emt 0:2:18]} Bxd6 {[%emt 0:0:3]} 19. exd6 {[%emt 0:0:3]} Qxd6 {[%emt 0:0:23]} 20. Bxg7 {[%emt 0:0:34]} Ne7 {[%emt 0:3:5]} 21. Bxh8 {[%emt 0:0:35]
} Nd5 {[%emt 0:0:30]} 22. Bf6 {[%emt 0:0:44]} Rg8 {[%emt 0:0:0]} 23. Rd1 {[%emt 0:0:7]} Qc6 {[%emt 0:0:21]} 24. Bd4 {[%emt 0:1:58]} f5 {[%emt 0:0:3]} 25. Qh5 {[%emt 0:0:8]} Rg4 {[%emt 0:0:17]} 26. Qxh7 {[%emt 0:0:33]
} Qc4 {[%emt 0:4:2]} 27. Re2 {[%emt 0:0:42]} Kc7 {[%emt 0:0:0]} 28. Be5+ {[%emt 0:0:24]} Kc6 {[%emt 0:0:9]} 29. Qh8 {[%emt 0:0:8]} Kb6 {[%emt 0:1:51]} 30. Qd8+ 1-0

[Event "FIDE World Rapid-ch Open 2018"]
[White "Gareyev, Timur"]
[Black "Apryshko, Gleb"]
[Site "St. Petersburg"]
[Round "10.78"]
[Annotator "ChessBase"]
[Result "1-0"]
[Date "2018.12.27"]
[WhiteElo "2569"]
[BlackElo "2385"]
[PlyCount "93"]
[TimeControl "900+10"]

1. d4 {[%emt 0:0:22]} d5 {[%emt 0:2:55]} 2. c4 {[%emt 0:0:6]} e6 {[%emt 0:0:0]} 3. Nc3 {[%emt 0:0:2]} a6 {[%emt 0:0:2]} 4. cxd5 {[%emt 0:1:23]} exd5 {[%emt 0:0:1]} 5. Bf4 {[%emt 0:0:1]} Nf6 {[%emt 0:0:29]} 6. e3 {[%emt 0:0:10]
} Bd6 {[%emt 0:0:2]} 7. Bxd6 {[%emt 0:0:32]} Qxd6 {[%emt 0:0:0]} 8. Bd3 {[%emt 0:0:4]} 0-0 9. Qc2 {[%emt 0:0:45]} b6 {[%emt 0:0:13]} 10. Nf3 {[%emt 0:0:5]} Bb7 {[%emt 0:2:2]} 11. g4 {[%emt 0:2:31]} Re8 {[%emt 0:4:1]
} 12. 0-0-0 {[%emt 0:0:2]} Nbd7 {[%emt 0:1:13]} 13. Bf5 {[%emt 0:0:16]
} Nf8 {[%emt 0:2:44]} 14. Rhg1 {[%emt 0:0:53]} Ne4 {[%emt 0:0:0]} 15. Kb1 {[%emt 0:0:46]} Re7 {[%emt 0:0:16]} 16. h4 {[%emt 0:1:46]} Rae8 {[%emt 0:0:26]} 17. g5 {[%emt 0:0:30]} g6 {[%emt 0:0:37]} 18. Bxe4 {[%emt 0:0:0]} dxe4 {[%emt 0:0:1]} 19. Ne5 {[%emt 0:0:3]} Nd7 {[%emt 0:0:9]} 20. Ng4 {[%emt 0:0:30]} f5 {[%emt 0:0:56]} 21. Nh6+ {[%emt 0:1:40]} Kg7 {[%emt 0:0:12]
} 22. h5 {[%emt 0:0:7]} b5 {[%emt 0:0:41]} 23. Ne2 {[%emt 0:0:0]} Nb6 {[%emt 0:0:0]} 24. hxg6 {[%emt 0:1:50]} hxg6 {[%emt 0:0:1]} 25. Rh1 {[%emt 0:0:2]} Nd5 {[%emt 0:0:28]} 26. Rh4 {[%emt 0:0:4]} Kf8 {[%emt 0:0:41]
} 27. Rdh1 {[%emt 0:0:14]} Rg7 {[%emt 0:0:3]} 28. Ng3 {[%emt 0:1:2]
} Nxe3 {[%emt 0:0:22]} 29. fxe3 {[%emt 0:0:1]} Qxg3 {[%emt 0:0:0]} 30. Nxf5 {[%emt 0:0:1]} gxf5 {[%emt 0:0:6]} 31. Qc5+ {[%emt 0:0:0]} Qd6 {[%emt 0:0:3]} 32. Qxf5+ {[%emt 0:0:9]} Ke7 {[%emt 0:0:0]} 33. Rh6 {[%emt 0:0:2]} Rf8 {[%emt 0:0:28]} 34. Qh3 {[%emt 0:1:7]} Rg6 {[%emt 0:0:5]
} 35. Rh8 {[%emt 0:0:16]} Qe6 {[%emt 0:0:28]} 36. Qh2 {[%emt 0:0:0]} Qd6 {[%emt 0:0:11]} 37. Qh7+ {[%emt 0:0:58]} Rf7 {[%emt 0:0:1]} 38. Qh5 {[%emt 0:0:1]} Rfg7 {[%emt 0:0:14]} 39. Rf1 {[%emt 0:0:1]} Bd5 {[%emt 0:0:5]
} 40. Rff8 {[%emt 0:0:2]} Bf7 {[%emt 0:0:2]} 41. Qh4 {[%emt 0:0:10]
} Qe6 {[%emt 0:0:3]} 42. b3 {[%emt 0:0:7]} Rxg5 {[%emt 0:0:0]} 43. Rc8 {[%emt 0:0:33]} Qc6 {[%emt 0:0:37]} 44. Rh7 {[%emt 0:0:31]} Qf6 {[%emt 0:0:13]} 45. Rxc7+ {[%emt 0:0:6]} Kd8 {[%emt 0:0:11]} 46. Rxg7 {[%emt 0:0:1]
} Qxg7 {[%emt 0:0:11]} 47. Rc5 {[%emt 0:0:1]} 1-0

[Event "FIDE World Rapid-ch Open 2018"]
[White "Teterev, Vitaly"]
[Black "Shinkevich, Vitaly"]
[Site "St. Petersburg"]
[Round "10.79"]
[Annotator "ChessBase"]
[Result "1-0"]
[Date "2018.12.27"]
[WhiteElo "2486"]
[BlackElo "2439"]
[PlyCount "63"]
[TimeControl "900+10"]

1. Nf3 c5 2. e4 d6 3. Bc4 Nf6 4. Qe2 Nc6 5. c3 e6 6. Bb3 Be7 7. 0-0 0-0 8. d4 cxd4 9. cxd4 d5 10. e5 Ne4 11. Be3 f5 12. exf6 Nxf6 13. Nc3 Bd6 14. Rad1 Bd7 15. Bg5 Qb6 16. Ne5 Bxe5 17. dxe5 Ne8 18. Be3 Qb4 19. Nxd5 exd5 20. Rxd5 Bg4 21. Qxg4 Qxg4 22. Rd4+ Kh8 23. Rxg4 Nxe5 24. Rb4 Nd6 25. Bc5 Rfd8 26. Rd1 Nf5 27. Rxb7 Rxd1+ 28. Bxd1 a5 29. g4 Nh4 30. f4 Nd3 31. Bd4 Nxf4 32. Bxg7+ 1-0

[Event "FIDE World Rapid-ch Open 2018"]
[White "Reshetnikov, Alexey"]
[Black "Tissir, Mohamed"]
[Site "St. Petersburg"]
[Round "10.80"]
[Annotator "ChessBase"]
[Result "0-1"]
[Date "2018.12.27"]
[WhiteElo "2492"]
[BlackElo "2387"]
[PlyCount "74"]
[TimeControl "900+10"]

1. c4 {[%emt 0:0:0]} Nf6 {[%emt 0:0:12]} 2. Nc3 {[%emt 0:0:0]} g6 {[%emt 0:0:2]
} 3. d4 {[%emt 0:0:0]} Bg7 {[%emt 0:0:1]} 4. e4 {[%emt 0:0:0]} d6 {[%emt 0:0:2]} 5. Be2 {[%emt 0:0:1]} 0-0 {[%emt 0:0:2]} 6. Bg5 {[%emt 0:0:2]
} c6 {[%emt 0:0:28]} 7. Qd2 {[%emt 0:0:36]} a6 {[%emt 0:0:1]} 8. Nf3 {[%emt 0:2:58]} b5 {[%emt 0:0:2]} 9. e5 {[%emt 0:0:28]} Ne8 {[%emt 0:0:14]
} 10. Rd1 {[%emt 0:0:55]} f6 {[%emt 0:2:35]} 11. exf6 {[%emt 0:0:0]} exf6 {[%emt 0:0:1]} 12. Be3 {[%emt 0:1:6]} f5 {[%emt 0:0:18]} 13. Bh6 {[%emt 0:1:28]} Ra7 {[%emt 0:0:4]} 14. 0-0 {[%emt 0:0:13]} Nf6 {[%emt 0:0:1]
} 15. Bxg7 {[%emt 0:0:37]} Rxg7 {[%emt 0:0:3]} 16. Rfe1 {[%emt 0:0:10]
} Ne4 {[%emt 0:3:39]} 17. Qc2 {[%emt 0:0:18]} d5 {[%emt 0:0:0]} 18. cxd5 {[%emt 0:0:39]} cxd5 {[%emt 0:0:1]} 19. Ne5 {[%emt 0:0:34]} Be6 {[%emt 0:1:27]} 20. f3 {[%emt 0:0:23]} Nf6 {[%emt 0:0:12]} 21. Nd3 {[%emt 0:1:26]
} Kh8 {[%emt 0:0:21]} 22. Nc5 {[%emt 0:0:12]} Bg8 {[%emt 0:0:0]} 23. b4 {[%emt 0:0:5]} Nh5 {[%emt 0:0:23]} 24. Bf1 {[%emt 0:1:2]} Qf6 {[%emt 0:0:14]} 25. Qd2 {[%emt 0:0:27]} g5 {[%emt 0:0:47]} 26. g3 {[%emt 0:0:0]} Qd6 {[%emt 0:2:35]} 27. a4 {[%emt 0:1:15]} bxa4 {[%emt 0:0:14]} 28. N3xa4 {[%emt 0:0:1]} Nf6 {[%emt 0:1:37]} 29. Qd3 {[%emt 0:2:27]} f4 {[%emt 0:1:17]
} 30. g4 {[%emt 0:0:11]} h5 {[%emt 0:0:0]} 31. h3 {[%emt 0:0:0]} hxg4 {[%emt 0:0:56]} 32. hxg4 {[%emt 0:0:1]} Rh7 {[%emt 0:0:1]} 33. Re5 {[%emt 0:0:9]} Nxg4 {[%emt 0:0:33]} 34. fxg4 {[%emt 0:0:8]} f3 {[%emt 0:0:1]
} 35. Rd2 {[%emt 0:0:47]} Nc6 {[%emt 0:0:8]} 36. Qe3 {[%emt 0:0:0]} Qh6 {[%emt 0:0:2]} 37. Qxg5 {[%emt 0:0:11]} f2+ {[%emt 0:0:7]} 0-1

[Event "FIDE World Rapid-ch Open 2018"]
[White "Maghsoodloo, Parham"]
[Black "Nozdrachev, Vladislav"]
[Site "St. Petersburg"]
[Round "10.81"]
[Annotator "ChessBase"]
[Result "1/2-1/2"]
[Date "2018.12.27"]
[WhiteElo "2688"]
[BlackElo "2486"]
[PlyCount "55"]
[TimeControl "900+10"]

1. e4 {[%emt 0:0:0]} e5 {[%emt 0:0:0]} 2. Nf3 {[%emt 0:0:0]} Nc6 {[%emt 0:0:0]
} 3. Bb5 {[%emt 0:0:0]} a6 {[%emt 0:0:0]} 4. Ba4 {[%emt 0:0:0]} d6 {[%emt 0:0:0]} 5. 0-0 {[%emt 0:0:4]} Bd7 {[%emt 0:0:18]} 6. c4 {[%emt 0:0:29]
} g5 {[%emt 0:0:25]} 7. Nc3 {[%emt 0:0:18]} g4 {[%emt 0:0:24]} 8. Ne1 {[%emt 0:0:3]} Bg7 {[%emt 0:0:6]} 9. d3 {[%emt 0:0:6]} Nge7 {[%emt 0:0:17]
} 10. f4 {[%emt 0:0:5]} gxf3 {[%emt 0:0:24]} 11. Nxf3 {[%emt 0:0:11]
} 0-0 {[%emt 0:0:8]} 12. Nd5 {[%emt 0:0:25]} b5 {[%emt 0:0:0]} 13. Bb3 {[%emt 0:0:4]} Na5 {[%emt 0:1:56]} 14. Bg5 {[%emt 0:0:56]} f6 {[%emt 0:0:3]} 15. Bd2 {[%emt 0:0:11]} Nxb3 {[%emt 0:1:15]} 16. Qxb3 {[%emt 0:0:53]
} Nxd5 {[%emt 0:1:28]} 17. cxd5 {[%emt 0:0:6]} f5 {[%emt 0:0:0]} 18. exf5 {[%emt 0:0:9]} Rxf5 {[%emt 0:0:48]} 19. Be3 {[%emt 0:0:18]} Be8 {[%emt 0:0:29]} 20. Qc2 {[%emt 0:0:26]} Bf7 {[%emt 0:0:24]} 21. Qc6 {[%emt 0:1:1]
} Be8 {[%emt 0:0:46]} 22. Qc2 {[%emt 0:0:17]} Bf7 {[%emt 0:0:0]} 23. Qc6 {[%emt 0:0:53]} Be8 {[%emt 0:0:5]} 24. Qb7 {[%emt 0:0:1]} Rb8 {[%emt 0:0:34]} 25. Qxa6 {[%emt 0:0:4]} Ra8 {[%emt 0:0:1]} 26. Qb7 {[%emt 0:0:5]
} Rb8 {[%emt 0:0:1]} 27. Qa6 {[%emt 0:0:35]} Ra8 {[%emt 0:0:0]} 28. Qb7 {[%emt 0:0:6]} 1/2-1/2

[Event "FIDE World Rapid-ch Open 2018"]
[White "Lobanov, Sergei"]
[Black "Gordievsky, Dmitry"]
[Site "St. Petersburg"]
[Round "10.82"]
[Annotator "ChessBase"]
[Result "0-1"]
[Date "2018.12.27"]
[WhiteElo "2526"]
[BlackElo "2614"]
[PlyCount "106"]
[TimeControl "900+10"]

1. e4 {[%emt 0:0:0]} c5 {[%emt 0:0:23]} 2. Nf3 {[%emt 0:0:0]} Nc6 {[%emt 0:0:2]
} 3. d4 {[%emt 0:0:0]} cxd4 {[%emt 0:0:1]} 4. Nxd4 {[%emt 0:0:0]} Qb6 {[%emt 0:0:1]} 5. Nb3 {[%emt 0:0:9]} Nf6 {[%emt 0:0:1]} 6. Nc3 {[%emt 0:0:2]} e6 {[%emt 0:0:2]} 7. Qe2 {[%emt 0:0:49]} Bb4 {[%emt 0:0:0]} 8. Bd2 {[%emt 0:0:1]} 0-0 {[%emt 0:2:18]} 9. a3 {[%emt 0:0:2]} Bxc3 {[%emt 0:0:4]} 10. Bxc3 {[%emt 0:0:2]} e5 {[%emt 0:0:3]} 11. 0-0-0 {[%emt 0:0:16]
} a5 {[%emt 0:0:34]} 12. Kb1 {[%emt 0:1:53]} Rd8 {[%emt 0:0:0]} 13. f3 {[%emt 0:2:22]} d6 {[%emt 0:1:16]} 14. Be1 {[%emt 0:4:6]} a4 {[%emt 0:0:19]
} 15. Bf2 {[%emt 0:0:7]} Qc7 {[%emt 0:0:8]} 16. Nd2 {[%emt 0:0:0]} d5 {[%emt 0:2:29]} 17. exd5 {[%emt 0:0:15]} Nxd5 {[%emt 0:0:4]} 18. Ne4 {[%emt 0:0:44]} Bf5 {[%emt 0:0:33]} 19. Qe1 {[%emt 0:0:48]} Na5 {[%emt 0:3:35]
} 20. Bd3 {[%emt 0:0:36]} Bg6 {[%emt 0:0:6]} 21. g3 {[%emt 0:0:0]} Nc4 {[%emt 0:0:20]} 22. h4 {[%emt 0:0:32]} h6 {[%emt 0:2:16]} 23. h5 {[%emt 0:1:47]} Bh7 {[%emt 0:0:1]} 24. Nc5 {[%emt 0:0:15]} Bxd3 {[%emt 0:0:0]} 25. cxd3 {[%emt 0:0:31]} Na5 {[%emt 0:0:45]} 26. Rc1 {[%emt 0:0:13]} Nc6 {[%emt 0:0:13]} 27. Qe4 {[%emt 0:0:14]} Nf6 {[%emt 0:0:3]} 28. Qc4 {[%emt 0:0:5]
} Nd4 {[%emt 0:0:59]} 29. f4 {[%emt 0:0:14]} b5 {[%emt 0:0:6]
} 30. Qb4 {[%emt 0:0:8]} Nd5 {[%emt 0:0:6]} 31. Qd2 {[%emt 0:0:5]} Nc6 {[%emt 0:0:11]
} 32. Ne4 {[%emt 0:0:16]} Qd7 {[%emt 0:0:7]} 33. fxe5 {[%emt 0:0:3]
} Nxe5 {[%emt 0:0:3]} 34. Bc5 {[%emt 0:0:16]} Rac8 {[%emt 0:0:0]} 35. d4 {[%emt 0:0:10]} Nc4 {[%emt 0:0:2]} 36. Qf2 {[%emt 0:0:1]} Re8 {[%emt 0:0:8]} 37. Nd2 {[%emt 0:0:17]} Nde3 {[%emt 0:0:21]} 38. Nxc4 {[%emt 0:0:3]
} Nxc4 {[%emt 0:0:3]} 39. Qf4 {[%emt 0:0:21]} Re2 {[%emt 0:0:0]} 40. Rc2 {[%emt 0:0:0]} Rxc2 {[%emt 0:0:25]} 41. Kxc2 {[%emt 0:0:2]} Re8 {[%emt 0:0:3]} 42. Rh2 {[%emt 0:0:7]} Qd5 {[%emt 0:0:3]} 43. Rf2 {[%emt 0:0:27]
} Ne3+ {[%emt 0:0:6]} 44. Kb1 {[%emt 0:0:9]} Qh1+ {[%emt 0:0:0]} 45. Ka2 {[%emt 0:0:1]} Qd5+ {[%emt 0:0:1]} 46. Kb1 {[%emt 0:0:6]} Qxh5 {[%emt 0:0:6]} 47. Rf3 {[%emt 0:0:5]} Qg6+ {[%emt 0:0:14]} 48. Ka2 {[%emt 0:0:14]
} Qe6+ {[%emt 0:0:1]} 49. Kb1 {[%emt 0:0:17]} Nd5 {[%emt 0:0:0]} 50. Qf5 {[%emt 0:0:11]} Nc3+ {[%emt 0:0:14]} 51. Kc2 {[%emt 0:0:26]} Qb3+ {[%emt 0:0:7]} 52. Kd2 {[%emt 0:0:5]} Re2+ {[%emt 0:0:3]} 53. Kd3 {[%emt 0:0:1]
} Qc2# 0-1

[Event "FIDE World Rapid-ch Open 2018"]
[White "Ovchinnikov, Vsevolod"]
[Black "Drygalov, Andrey"]
[Site "St. Petersburg"]
[Round "10.83"]
[Annotator "ChessBase"]
[Result "1/2-1/2"]
[Date "2018.12.27"]
[WhiteElo "2329"]
[BlackElo "2481"]
[PlyCount "80"]
[TimeControl "900+10"]

1. d4 {[%emt 0:0:0]} d5 {[%emt 0:0:6]} 2. c4 {[%emt 0:0:0]} c6 {[%emt 0:0:0]} 3. Nf3 {[%emt 0:0:0]} Nf6 {[%emt 0:0:2]} 4. g3 {[%emt 0:0:0]} g6 {[%emt 0:0:2]} 5. Bg2 {[%emt 0:0:1]} Bg7 {[%emt 0:0:1]} 6. Qb3 {[%emt 0:0:0]} 0-0 {[%emt 0:0:3]} 7. 0-0 {[%emt 0:0:3]} dxc4 {[%emt 0:0:1]} 8. Qxc4 {[%emt 0:0:2]} Bf5 {[%emt 0:0:0]} 9. Nc3 {[%emt 0:2:14]} Nbd7 {[%emt 0:0:1]
} 10. Bf4 {[%emt 0:2:26]} Rc8 {[%emt 0:1:13]} 11. Rac1 {[%emt 0:5:46]
} Qb6 {[%emt 0:0:25]} 12. Na4 {[%emt 0:0:32]} Qb5 {[%emt 0:0:0]} 13. b3 {[%emt 0:1:35]} Nd5 {[%emt 0:2:27]} 14. Bd2 {[%emt 0:1:16]} Be4 {[%emt 0:0:9]} 15. Qxb5 {[%emt 0:1:51]} cxb5 {[%emt 0:0:1]} 16. Nc3 {[%emt 0:0:1]
} Nxc3 {[%emt 0:0:32]} 17. Bxc3 {[%emt 0:0:24]} Nb6 {[%emt 0:0:0]} 18. e3 {[%emt 0:0:20]} Nd5 {[%emt 0:1:17]} 19. Bd2 {[%emt 0:0:2]} h6 {[%emt 0:2:24]} 20. Nh4 {[%emt 0:0:25]} Bxg2 {[%emt 0:0:33]} 21. Kxg2 {[%emt 0:0:3]
} e6 {[%emt 0:0:46]} 22. Nf3 {[%emt 0:0:14]} f5 {[%emt 0:0:5]
} 23. Rfd1 {[%emt 0:0:52]} Rfd8 {[%emt 0:0:20]} 24. h3 {[%emt 0:0:21]} g5 {[%emt 0:0:13]
} 25. Kf1 {[%emt 0:0:6]} Bf8 {[%emt 0:0:9]} 26. Rxc8 {[%emt 0:0:29]
} Rxc8 {[%emt 0:0:2]} 27. Rc1 {[%emt 0:0:5]} Rxc1+ {[%emt 0:0:0]} 28. Bxc1 {[%emt 0:0:1]} Nb4 {[%emt 0:0:7]} 29. a4 {[%emt 0:0:12]} bxa4 {[%emt 0:2:13]} 30. bxa4 {[%emt 0:0:1]} Nd3 {[%emt 0:0:24]} 31. Bd2 {[%emt 0:0:1]
} Nb2 {[%emt 0:0:3]} 32. a5 {[%emt 0:0:1]} Nc4 {[%emt 0:0:0]} 33. Bc3 {[%emt 0:0:1]} Nd6 {[%emt 0:1:22]} 34. Ne5 {[%emt 0:0:9]} Nb5 {[%emt 0:1:25]} 35. Be1 {[%emt 0:0:12]} Bd6 {[%emt 0:0:3]} 36. Nc4 {[%emt 0:0:10]
} Bc7 {[%emt 0:0:10]} 37. Bb4 {[%emt 0:0:25]} Kf7 {[%emt 0:0:0]} 38. g4 {[%emt 0:0:1]} Kg6 {[%emt 0:0:15]} 39. Ke2 {[%emt 0:0:38]} h5 {[%emt 0:0:10]
} 40. f3 {[%emt 0:0:2]} f4 {[%emt 0:1:20]} 1/2-1/2